[Event "FIDE Candidates 2026"]
[Site "Pegeia, Cyprus"]
[Date "2026.03.30"]
[Round "2.4"]
[White "Sindarov, Javokhir"]
[Black "Bluebaum, Matthias"]
[Result "1/2-1/2"]
[ECO "C42"]
[WhiteElo "2745"]
[BlackElo "2698"]
[Annotator "Mark Crowther"]
[PlyCount "84"]
[EventDate "2026.??.??"]
[TimeControl "40/7200:1800+30"]

{[%evp 0,84,30,22,22,22,55,-5,53,16,14,-4,-7,-44,-2,12,-1,-10,41,9,11,4,67,9,74,49,46,10,4,-49,-1,-25,7,5,18,-12,-11,2,-3,-3,12,-17,-24,-19,8,8,27,22,16,12,12,16,13,13,19,29,23,26,24,25,32,32,41,56,35,47,49,57,58,58,60,9,11,5,2,1,5,0,0,0,0,0,0,0,8,0,14]} 1. e4 e5 2. Nf3 Nf6 3. Nxe5 d6 4. Nd3 Nxe4 5. Qe2 Qe7 $1 6. Nf4 {C42: Petroff Defence: 3 Nxe5 and unusual White 3rd moves.} c6 {Repels Nd5} 7. f3 Nf6 8. d4 Bf5 ({RR} 8... Nbd7 9. Qxe7+ Bxe7 10. Bd3 O-O 11. Kf2 Re8 12. g4 Nb6 13. c3 Nfd5 14. h4 Nxf4 15. Bxf4 Nd5 16. Bd2 b5 17. a4 Bd7 18. axb5 cxb5 19. Na3 a6 20. Nc2 Bc6 21. b3 Nb6 22. c4 bxc4 23. bxc4 {Kabylbek,Y (2193)-Atwell,R (2337) chess.com INT 2026 0-1 (70)}) 9. c3 ({RR} 9. c4 h5 10. Nc3 Na6 11. Kf2 Nb4 12. Qd1 O-O-O 13. Nd3 d5 14. c5 Nxd3+ 15. Bxd3 Ne4+ 16. fxe4 dxe4 17. Be2 Qf6 18. Be3 Bxc5 19. Rf1 Qh4+ 20. Kg1 Bd6 21. Rxf5 Qxh2+ 22. Kf1 Qh1+ 23. Bg1 g6 {Carlsen,M (2859)-Rapport,R (2740) Wijk aan Zee NED 2023 1-0 (36)}) 9... Qxe2+ 10. Bxe2 h5 11. Na3 $146 {This seems a little bit odd but it is at least new.} ({Predecessor: RR} 11. Kf2 Nbd7 12. h4 O-O-O 13. Nd2 {1-0 Sivuk,V (2514)-Kacharava $146 (2424) EU-ch 20th Skopje 2019 (8)} d5 14. Nf1 Bd6 15. Ng3 Bc2 16. Bd2 Nf8 17. Rac1 Bxf4 18. Bxf4 {1-0 Sivuk,V (2514)-Kacharava,N (2424) EU-ch 20th Skopje 2019 (8)} Bg6 19. Bg5 Rd6 20. Rhe1 Re6 21. Bf1 Ne8 22. Ne2 Bf5 23. Red1 Nd6 24. b3 b5 25. Ng3 Bg6 {Sivuk,V (2514)-Kacharava,N (2424) Skopje 2019 1-0 (42)}) 11... Na6 12. Nc4 Nc7 13. Ne3 Bh7 14. h4 Kd7 {Black has a slightly passive position, but White's advantage is small and not so easy to convert to something concrete.} (14... Ne6 {is indicated by the computer as the most accurate way to equalize.}) 15. Kf2 Re8 $6 (15... d5 {would have prevented the pawn sacrifice that's indicated on the next move.}) 16. g3 (16. d5 $1 {was a fascinating pawn sacrifice that could have given White a significant advantage. The point is that this move disrupts Black's coordination. Seems like the right idea.} cxd5 17. g3 {For example, Black would have wanted to play ...d5 and ...Bd6. Now that's not possible, so if he develops with} Be7 18. Rd1 {White threatens to regain the pawn and then to pressure the remaining isolani on d6.}) 16... Ne6 17. Nh3 d5 18. Ng5 Bg6 19. Bf1 Nh7 20. Bh3 Nhxg5 21. hxg5 Kc7 22. Nf5 {Black equalizes directly after this move.} (22. Ng2 Bd6 23. Re1 Bc2 24. Bxe6 Rxe6 25. Bf4 {And White steers toward a better knight vs. bishop endgame, though the advantage is still minimal.}) 22... Bxf5 23. Bxf5 g6 24. Bc2 {White has the two bishops, but there's no advantage.} Bd6 25. Be3 (25. f4 {is met with the undermining} h4) 25... Re7 26. Rae1 Rhe8 27. f4 Ng7 28. Kf3 Kd7 29. Bf2 Rxe1 30. Bxe1 {Keeping rooks on, at least.} Rf8 31. g4 f5 32. gxh5 Nxh5 33. Bd2 Rh8 34. Bd3 Rh7 35. Bxf5+ {This forces further liquidation. White had no advantage anyway.} gxf5 36. g6 Rg7 37. Rxh5 $11 Ke6 $1 38. Rh6 Kf6 39. Be1 Rxg6 40. Rh7 Rg7 41. Rh6+ Rg6 42. Rh7 Rg7 1/2-1/2

[Event "FIDE Candidates 2026"]
[Site "Pegeia, Cyprus"]
[Date "2026.03.31"]
[Round "3.3"]
[White "Caruana, Fabiano"]
[Black "Wei, Yi"]
[Result "1-0"]
[ECO "A34"]
[WhiteElo "2795"]
[BlackElo "2754"]
[Annotator "Mark Crowther"]
[PlyCount "37"]
[EventDate "2026.??.??"]
[TimeControl "40/7200:1800+30"]

{[%evp 0,37,22,13,15,6,25,0,6,12,63,66,83,12,20,-5,-5,-5,2,9,9,7,36,38,33,32,63,41,38,27,49,31,31,9,54,74,230,230,302,306]} 1. Nf3 {Roiz,Michael} Nf6 2. c4 c5 3. g3 g6 4. Nc3 d5 5. cxd5 Nxd5 6. Bg2 Bg7 7. Qa4+ {The third most popular move.} ({RR} 7. O-O Nc6 8. Nxd5 Qxd5 9. d3 O-O 10. Be3) ({RR} 7. Qb3) ({RR} 7. Ng5 e6 8. Nge4 Na6 9. d3 O-O 10. O-O b6 11. Bg5 f6 12. Nxd5 exd5 13. Nc3 Be6 14. Bf4 Qd7 15. d4 Rad8 16. Rc1 cxd4 17. Qxd4 g5 18. Bd2 Nc5 19. Qb4 d4 20. Ne4 d3 21. e3 Nxe4 {Vitiugov,N (2729)-Kramnik,V (2796) Nizhnij Novgorod 2013 ½-½ (49)}) 7... Nc6 8. Ng5 ({RR} 8. Qc4 Ndb4 9. O-O Qa5 ({RR} 9... Na6 10. d3 O-O 11. Qh4) 10. a3 Be6 (10... Nc2 11. Rb1 Be6 12. Qh4 Bb3 13. d3 N2d4 14. Nxd4 Nxd4 15. Be3 Nf5 16. Qe4 O-O 17. Bd2 Rfe8 18. Qxb7 Rab8 19. Ne4 Rxb7 20. Bxa5 Rb5 21. Bc3 Nd4 22. Rfe1 Reb8 {Neef,M (2481)-Yoo,C (2573) Charlotte USA 2022 ½-½ (98)}) 11. axb4 Qxa1 12. Qxc5 Rc8 13. Qe3 O-O) ({RR} 8. O-O O-O 9. Qc4 Nxc3 10. dxc3 Qb6 11. Qh4 Rd8) 8... Nb6 $146 {The first new move, which caused Caruana to think for about eight minutes. An interesting new idea.} ({Predecessor: RR} 8... e6 {is by far the main move.} 9. Nge4 Nb6 10. Qb5 (10. Qd1 Qe7 11. d3 h6 12. Be3 Nd4 13. a4 O-O 14. a5 Nd7 15. O-O {1-0 Artemiev,V (2701)-Raja,R (2521) Qatar Masters op-A Doha 2024 (7)}) ({RR} 10. Qa3 O-O 11. Qxc5 Nd4 12. O-O f5 13. Nd6 Nc2 14. Rb1 Bd4) 10... c4 ({RR} 10... O-O 11. Nxc5 Nd4 12. Qd3 Qe7 13. Nb3 e5) 11. Na4 $2 (11. d3 $5) (11. O-O) ({RR} 11. b3 O-O 12. bxc4 Nd4 ({RR} 12... f5 13. Nc5 a6 14. Qb3 Nd4 15. Qd1 Nxc4) 13. Qb1 Nxc4 14. O-O f5 15. Nc5 Qb6 16. Nb3 Bd7 ({RR} 16... Nb5 17. Nxb5 Qxb5 18. d3 Nb6 19. Bb2) 17. Nxd4 Qxd4 18. e3 Qd6 19. Qxb7 Rab8 20. Qxa7 Bc6) 11... O-O ({RR} 11... f5 12. Nxb6 axb6 13. Nc3 Bd7 14. Qxc4 Nd4 15. Qd3 Bc6 16. Bxc6+ bxc6) 12. Nxb6 axb6 13. Qxc4 e5 14. Qc2 ({RR} 14. d3 Be6 15. Bg5 Bxc4 ({RR} 15... Qb8 16. Qc1 Nd4 17. Nc3) 16. Bxd8 Rfxd8 17. dxc4 f5 (17... Nd4 18. Rc1 Rxa2 19. e3 Nc6 20. Rb1 Ra4 21. b3 Ra3 22. g4 Rd3 23. Ke2 {Hjartarson,J (2585)-Malisauskas,V (2510) Moscow 1994 ½-½ (39)}) 18. Nc3 e4) 14... Be6 ({RR} 14... Nd4 15. Qb1 f5 16. Nc3 e4 17. d3 b5 18. Be3 b4 19. Nd1 Re8) 15. Nc3 ({RR} 15. Qb1 f5 16. Nc3 b5 17. Nxb5 Bd5 18. f3 e4) ({RR} 15. O-O Nd4 16. Qd1 Bb3 17. axb3 Rxa1) 15... b5 $2 {0-1 So,W (2779)-Vachier Lagrave,M (2731) Sinquefield Cup 3rd Saint Louis 2015 (1)} ({RR} 15... Nd4 16. Qb1 Qd7 17. O-O Rfc8) 16. Bxc6 ({RR} 16. Nxb5 Bd5 17. e4 Bxa2 18. O-O Qb6 19. Na3 Nd4) ({RR} 16. b4 Nd4 17. Qb1 Bf5 18. e4 Be6 19. O-O) 16... bxc6 17. b3 ({RR} 17. Ne4 Bxa2 18. O-O Qd4) 17... Bf5 18. d3 ({RR} 18. e4 Bh3 19. d3 Qd7 20. Be3 Bg2 21. Rg1 Bf3) 18... e4 19. dxe4 Bxe4 20. Nxe4 Bxa1 21. O-O Re8 22. f3 ({RR} 22. Be3 Bg7 23. Nc5) 22... Bd4+ 23. e3 {So,W (2779)-Vachier Lagrave,M (2731) Saint Louis 2015 CBM 168 [Roiz,Michael] 0-1 (35)} ({RR} 23. Kg2 f5 24. Nf2 ({RR} 24. Bg5 Qd5 25. Nf6+ Bxf6 26. Bxf6 Qe6) 24... Qe7 25. e4 Qc5 26. Qb1 Qc3) {RR} 23... f5 24. exd4 fxe4 25. fxe4 Qxd4+ 26. Kg2 Qxe4+ 27. Qxe4 Rxe4) ({RR} 8... Nxc3 9. dxc3 O-O 10. Ne4) 9. Bxc6+ {Caruana has played this kind of trade on the black side of the King's Indian Defense. He now does it with White. The position is equal.} bxc6 10. Qxc6+ Bd7 11. Qxc5 h6 $1 12. Nf3 Rc8 13. Qa5 Bh3 {Black is two pawns down, but with full compensation based on the white king being stuck in the center and the domination on the light squares.} 14. Qb5+ {Caruana thought for about 18 minutes before playing this move, and by now he was 50 minutes down on the clock.} Nd7 (14... Bd7 $6 15. Qd3 {And now Black cannot play ...Bh3 without allowing a queen trade.}) (14... Kf8 {Caruana thought this was the critical move. He calculated} 15. d4 Nc4 16. Qd5 {This was his bailout option, but he also considered 16.Be3.} (16. Be3 $5 {\"Black has very strong compensation, but it's not very concretely bad for White or anything,\" said Caruana.})) 15. Rg1 O-O (15... Bg4 {Knowing what happens in the game, it may have been time to remove the bishop from h3. It has already done its job, stopping castling.} 16. Kf1 Bh3+ {is a cute repetition that the computer finds. White is unable to castle by hand.} 17. Ke1 Bg4 18. Qa4 Bxf3 19. exf3 O-O {is another way the game might continue. Black has full compensation based on White's king position and the ruined pawn structure, even two pawns down.}) (15... Be6 {is really the best idea.}) 16. g4 $1 {Caruana thought he might be better by this point.} Rc5 $2 {[%eval 90,17] [%wdl 374,626,0] Chasing the queen to where it wants to go. From b3, it x-rays the bishop on h3. Already Caruana had seen the Nd1 maneuver. [#]} (16... Nf6 $1 $11 {[%eval 23,19] [%wdl 21,977,2] was the only move already, attacking g4.} 17. Qa4 {Caruana calculated the line} (17. g5 hxg5 18. Nxg5 Bd7 {And the bishop gets out. White's king is still in the center, and the bishop remains undeveloped.}) (17. Ne5 h5 {This is the key move to extricate the bishop from danger.}) 17... h5 (17... Qc7 {Defending a7 and connecting the rooks. Black has a response if White attempts to win the bishop.} 18. Rg3 h5 $1 {And if} 19. Rxh3 (19. gxh5 Bd7 {Black recaptures on h5 and the bishop is saved.}) 19... hxg4 {Black regains the piece.}) 18. gxh5 Nxh5 19. d4 {and thought White was better. The engine confirms.}) ({Wei Yi considered and rejected} 16... f5 $2 17. g5) ({Caruana also considered} 16... h5 $2 17. gxh5 Rc5 18. Qb7 (18. Qb3 Be6) 18... Rxh5 19. Rg5 {He saw all of these moves and said the position was still very complicated. The engine eval is over +1, very good for White, but it wasn't so clear to Caruana.}) 17. Qb3 $1 $16 {aiming for d4.} Ne5 $4 {[%eval 319,14] [%wdl 1000,0,0] An obvious and losing move.} ({The computer suggests the following line, though White is better in all cases.} 17... Nf6 18. d4 $1 Rc8 19. g5 {This was the line Caruana calculated.} ({The engine shows} 19. Ne5 $1 {White has to find these two moves to keep a large advantage. At least the game is still messy.} Qxd4 20. Nxg6 Nxg4 21. Nd1 Rfe8 22. Rg3 Rb8 23. Nxe7+ Kf8 24. Qd3 Qb4+ 25. Bd2 Qxe7 26. Rxh3 {White is still two pawns up and Black will have to prove the compensation. Still, this is messier than the game, which lasts just two more moves.}) 19... hxg5 20. Nxg5 Bf5 21. e4 Nxe4 $2 (21... Rxc3 $1 {The engine points this out.} 22. bxc3 Nxe4 {with great compensation.}) 22. Ngxe4 Qxd4 23. Be3 Qe5 {White is better, though Caruana said he was still trying to figure this position out.}) (17... Qc7 $16 {[%eval 91,20] [%wdl 390,610,0] keeps fighting.}) 18. Nxe5 $18 Rxe5 19. Nd1 {Black simply resigns. He's going to lose the bishop for, at most, a pawn. He's already two pawns down. and a piece has gone west.} (19. Rg3 Qa8 {And Black has some counterplay, maybe. This is what Wei saw and he missed the move played in the game.}) 1-0

[Event "FIDE Candidates 2026"]
[Site "Pegeia, Cyprus"]
[Date "2026.04.01"]
[Round "4.3"]
[White "Sindarov, Javokhir"]
[Black "Caruana, Fabiano"]
[Result "1-0"]
[ECO "D28"]
[WhiteElo "2745"]
[BlackElo "2795"]
[Annotator "Rafael Leitao"]
[PlyCount "71"]
[EventDate "2026.??.??"]
[TimeControl "40/7200:1800+30"]

{[%evp 0,71,23,23,14,6,6,6,40,38,41,42,67,67,62,-7,44,20,20,14,20,-11,7,20,17,-6,-10,12,10,-43,-43,-50,0,0,42,-79,-9,-9,7,24,113,75,110,100,100,101,117,65,75,58,128,111,120,53,151,117,154,156,134,197,226,202,228,227,217,189,191,226,154,135,232,248,683,758]} 1. d4 {Mark Crowther} d5 2. c4 e6 3. Nf3 dxc4 4. e3 Nf6 5. Bxc4 c5 6. O-O Nc6 (6... a6 {é o lance clássico do Gambito da Dama Aceito.}) 7. Qe2 {Claro que há muitas sutilezas nessa abertura. Levar a dama para e2, seguido de Td1, é um plano clássico; a outra ideia é desenvolver imediatamente o cavalo para c3, como já foi tentado muitas vezes.} a6 {As Pretas preparam b7-b5.} 8. Nc3 b5 9. Bd3 $5 (9. Bb3 {Esta posição, que também pode surgir com uma ordem de lances diferente, é bem conhecida. As Pretas devem continuar com} Bb7) 9... Bb7 (9... cxd4 {também é possível:} 10. exd4 Nb4 11. Be4 Nxe4 12. Qxe4 Nd5 13. Bg5 f6 14. Rfe1 Be7 15. Bd2 {Isso aconteceu em Tregubov–Duboue, Campeonato Francês em L’Alpe d’Huez 2024. Aqui, as Pretas podem jogar} Kf7 {com uma posição sólida.}) 10. a4 b4 ({Mark Crowther: 'RR'} 10... c4 $5 {é jogável.} 11. Bc2 b4 12. Ne4 Na5 13. Nxf6+ gxf6 14. e4 {Svane–Anton Guijarro, Campeonato Mundial por Equipes de Rápido, Londres 2025. Agora, as Pretas devem jogar} Qc7 $1 {com chances para ambos os lados.} (14... h5 {Mark Crowther} 15. d5 Bc5 16. Be3 Qb6 17. Bxc5 Qxc5 18. dxe6 fxe6 19. Rad1 Rd8 20. e5 f5 21. Ng5 Rxd1 22. Rxd1 Bd5 23. Nh3 b3 24. Bb1 Nc6 25. Nf4 {Svane,R (2626)-Anton Guijarro,D (2642) London ENG 2025 1-0 (50)})) 11. Ne4 Na5 12. Nxf6+ gxf6 {Isso é muito semelhante à segunda partida do match Ding–Nepomniachtchi, disputado em 2023. Nesse caso, as Brancas tinham um peão em h3 e a dama em d1.} 13. dxc5 $1 {Um lance novo. Sindarov tinha isso preparado e teve sorte de revisá-lo antes da partida. Mark Crowther: 'N'} ({Mark Crowther: 'Predecessor:' Mark Crowther: 'RR'} 13. Rd1 $6 {foi testado em Turna–Banduka, Banska Stiavnica 2007. As Pretas podem jogar} c4 $1 (13... Qb6 {Mark Crowther} 14. Rb1 c4 15. Bxc4 Nxc4 16. Qxc4 Be4 17. Ra1 Qb7 18. Ne1 Rg8 19. g3 {0-1 Turna,S (2278)-Banduka,Z (2115) SVK-ch op-A Banska Stiavnica 2007 (9.27)} Bd6 {Mark Crowther} 20. Qf1 f5 21. f3 Bd5 22. e4 fxe4 23. fxe4 Bxe4 24. Bf4 Qd5 25. Rac1 h5 26. Bxd6 Qxd6 27. Ng2 Bc6 {Turna,S (2278)-Banduka,Z (2115) Banska Stiavnica 2007 0-1 (71)}) 14. Bxc4 Nxc4 15. Qxc4 Rg8 {com a iniciativa.}) 13... Nb3 {O lance crítico. Mark Crowther: '[#]'} (13... Bxc5 {também é possível, mas após} 14. e4 Nb3 15. Rb1 Nxc1 16. Rbxc1 {As Brancas têm alguma iniciativa, por exemplo:} Qb6 17. Nd2 {Seguido de Cc4.}) 14. c6 $1 {Um detalhe tático importante. Caruana já estava gastando muito tempo neste momento. Sindarov havia alcançado algo quase impensável: uma abertura que Caruana não conhecia $1} (14. Rb1 Nxc5 {é bom para as Pretas.}) 14... Bxc6 {Mark Crowther: '[#]'} 15. Nd4 $1 {Forçando as Pretas a capturar em d4.} Nxd4 {As alternativas são muito piores.} (15... Nxa1 $2 16. Nxc6 Qb6 (16... Qd6 17. Bxa6 {com uma iniciativa vencedora. As Pretas não podem capturar o cavalo em c6, devido à cravada com Bb5.}) 17. Nd4 $1 Bc5 18. Bc4 {O cavalo das Pretas está preso em a1 e inevitavelmente será capturado mais adiante.}) (15... Qd5 $6 {foi analisado por ambos os jogadores durante a coletiva de imprensa.} 16. Nxc6 (16. f3 {também é bom para as Brancas.}) 16... Qxc6 17. Rb1 {com a vantagem.}) 16. exd4 Rg8 $1 {Caruana e Sindarov disseram que isso foi um grande erro, mas o computador discorda.} (16... Qxd4 $6 {As Pretas devem esperar antes de capturar esse peão.} 17. Be3 Qd5 18. f3 {com excelente compensação pelo peão. As Brancas conseguem gerar ameaças muito rapidamente.}) 17. g3 $1 (17. Be4 {é tentador, mas após} Bxe4 18. Qxe4 Qd5 $1 19. Qxd5 exd5 20. Bf4 Kd7 {as Pretas conseguem igualar, apesar de uma estrutura de peões um tanto estranha.}) (17. Bxa6 {Mark Crowther} Rxg2+ 18. Kh1 Qd6 19. Qh5 Rxh2+ 20. Kg1 Rxh5 21. f4 Qxd4+) 17... f5 $2 {[%eval 129,19] [%wdl 836,164,0] Agora as Brancas conseguem estabilizar a posição com uma vantagem posicional significativa, já que o rei das Pretas não tem para onde ir e o peão em a6 é uma fraqueza evidente. Mark Crowther: '?!' Mark Crowther: 'Caruana has been caught in the opening and spent a long time here, he didn't find the best.'} ({Mark Crowther: 'Better is'} 17... Qxd4 $1 {[%eval 56,20] [%wdl 82,918,0] é necessário: Mark Crowther: ''} 18. Be3 Qd5 19. f3 f5 $1 {Isso é forçado: é importante impedir que o bispo das Brancas vá para e4. Certamente não é muito agradável jogar com as Pretas, mas a posição é defensável, por exemplo:} 20. Bxa6 {Um lance humano natural.} (20. Kh1 {é a primeira escolha do computador.}) 20... Bc5 $1 {com igualdade.}) 18. Bc4 {Jogada com a clara intenção de sacrificar o bispo em e6.} (18. Bxa6 {Mark Crowther} Qd5 19. f3 Bd6) 18... Rg4 $6 {Jogado após mais uma longa reflexão. A essa altura, Caruana já estava com pouco tempo e em uma posição ruim — seu destino estava praticamente selado.} (18... Bd5 {Com a casa d5 indisponível para a dama, as Brancas podem simplesmente capturar o peão em a6.} 19. Bxa6 {com um peão a mais sólido.}) (18... Qxd4 {provavelmente é a melhor chance.} 19. Bxe6 Qe4 $1 20. Qxe4 Bxe4 {Mark Crowther: 'is not very appetising.'} (20... fxe4 21. Bf5 {é desesperador para as Pretas.}) 21. Bc4 {As Brancas têm um final muito melhor, mas pelo menos, sem damas no tabuleiro, fica mais fácil para as Pretas encontrarem lances.}) 19. Be3 {O peão em a6 está pendurado, e as Brancas também têm um plano com d4-d5 em algum momento, destruindo a estrutura de peões das Pretas.} (19. Bxa6 $6 {Mark Crowther} Qd5 (19... Qxd4 20. Bb5 $16) (19... Rxd4 20. Be3 $16) 20. f3 Bg7 $11 (20... Qxd4+ $2 21. Be3 $18)) (19. Bxe6 {Mark Crowther} Re4 20. Bxf7+ Kxf7 21. Qh5+ Kg8 $19) 19... Bd5 20. Rac1 {Simples e bom: o peão em a6 não vai fugir.} (20. Bxa6 {Também é possível capturá-lo imediatamente.} Bd6 (20... Be7 {Mark Crowther} 21. Rfc1 Kf8) 21. Bc4 {com a vantagem.} Bxc4 22. Qxc4 f4 {Isso foi mencionado por Sindarov na análise pós-jogo, mas o computador mostra um caminho para as Brancas vencerem:} 23. Qc6+ Kf8 24. Bxf4 $1 Bxf4 25. Qf3 h5 26. h3 {Seguido de capturar o bispo em f4.}) 20... Be7 21. Bxa6 {Mark Crowther: '!'} Kf8 22. Bb5 {As Brancas têm um peão a mais, mas isso não é tudo: as peças das Pretas carecem de coordenação.} Bf6 {[%eval 191,20] [%wdl 994,6,0]} (22... h5 $16 {[%eval 123,20] [%wdl 787,213,0] Mark Crowther}) 23. Rfd1 {Mark Crowther: '+-'} Kg7 24. Bc6 $1 {Uma excelente solução. Sindarov devolve o peão para remover o bloqueio na casa d5.} Ra5 {[%eval 249,16] [%wdl 1000,0,0]} (24... Bxc6 {A ideia das Brancas pode ser vista após} 25. Rxc6 Rxa4 26. d5 $1 {quebrando a resistência das Pretas, por exemplo:} exd5 27. Qc2 {Atacando a torre e o peão em f5. Tudo desmorona.}) (24... h5 {[%eval 193,20] [%wdl 995,5,0] (Mark Crowther) keeps fighting.} 25. Bxd5 Qxd5) 25. Bxd5 Rxd5 26. Rc5 $1 Rd7 {Mark Crowther: '[#]'} (26... Bxd4 {Após essa captura, as Brancas podem simplesmente jogar} 27. Rxd5 Qxd5 28. a5 {As peças das Pretas estão todas presas à defesa do bispo em d4, enquanto o peão passado da coluna “a” começa a avançar.}) 27. d5 $1 exd5 (27... Re4 {é uma chance prática melhor, mas as Brancas também estão completamente ganhas aqui.} 28. b3 {Mark Crowther}) 28. Qf3 Bxb2 {Mark Crowther: 'Black is just winning and now cleans up efficiently.'} (28... d4 {não altera a avaliação. Uma possível continuação é} 29. Rxf5 Rg6 30. Bd2 d3 31. Bxb4 Bxb2 32. Ba5 {e o peão em d3 será capturado em breve.}) 29. Rcxd5 ({Weaker is} 29. Qxf5 {Mark Crowther} Rg6 30. Rb5 (30. Rcxd5 Rxd5 31. Qxd5 Qxd5 $16) 30... Bf6 $18) 29... Rxd5 30. Rxd5 Qe8 31. Rxf5 Rg6 32. h4 Bc3 33. h5 Ra6 34. Qg4+ Kh8 35. Bd4+ f6 36. Rc5 {Sindarov derrota seu co-líder e rival mais perigoso em uma verdadeira obra-prima. Ele demonstra excelente preparação e grandes ambições no início do torneio.} 1-0